bitfinex/quotes_ETHUSD_20210401
["timestamp","ask_amount","ask_price","bid_price","bid_amount"]
[1617248537729,22.90205371,1919.5,1919.4,6.0]
[1617248538767,22.35819166,1919.5,1919.4,6.0]
[1617248539368,20.52149166,1919.5,1919.4,6.0]
[1617248541171,21.60884795,1919.5,1919.4,6.0]
[1617248541371,21.55884795,1919.5,1919.4,6.0]
[1617248542375,19.72114795,1919.5,1919.4,6.0]
[1617248544619,20.11114795,1919.5,1919.4,6.0]
[1617248545421,17.88214795,1919.5,1919.4,6.0]
[1617248546226,25.88214795,1919.5,1919.4,6.0]
[1617248546425,27.60944795,1919.5,1919.4,6.0]
[1617248546624,58.00944795,1919.5,1919.4,6.0]
[1617248547223,58.00944795,1919.5,1919.4,0.0001]
[1617248548226,20.9,1919.4,1919.1,1.0]
[1617248548429,19.9011,1919.2,1919.1,1.0]
[1617248548626,34.5966,1919.2,1919.1,1.0]
[1617248549453,42.5966,1919.2,1919.1,1.0]
[1617248549651,42.5966,1919.2,1919.1,0.9]
[1617248549854,50.41693,1919.2,1919.1,0.9]
[1617248550053,90.96088282,1919.2,1919.1,0.9]
[1617248550855,91.35088282,1919.2,1919.1,0.0001]
[1617248551458,91.35088282,1919.2,1918.6,1.0]
[1617248551459,18.4,1919.1,1918.6,1.0]
[1617248551655,11.73177,1918.8,1918.6,1.0]
[1617248552070,23.74728102,1918.8,1918.6,1.0]
[1617248552272,23.16,1918.7,1918.6,1.0]
[1617248553073,27.24035601,1918.7,1918.6,1.0]
[1617248553272,38.00844366,1918.7,1918.6,1.0]
[1617248553474,38.28042484,1918.7,1918.6,1.0]
[1617248553674,38.28042484,1918.7,1918.6,0.0001]
[1617248553874,46.28042484,1918.7,1918.6,0.0001]
[1617248554495,44.44002484,1918.7,1918.6,0.0001]
[1617248555695,44.98418969,1918.7,1918.6,0.0001]
[1617248556699,46.0721035,1918.7,1918.6,0.0001]
[1617248557122,18.56220851,1918.7,1918.6,0.0001]
[1617248557522,16.72130851,1918.7,1918.6,0.0001]
[1617248558583,8.56071776,1918.7,1918.6,0.0001]
[1617248558982,24.72102217,1918.7,1918.6,0.0001]
[1617248559386,27.32851907,1918.7,1918.6,0.0001]
[1617248559582,44.37130907,1918.7,1918.6,0.0001]
[1617248559987,28.21100466,1918.7,1918.6,0.0001]
[1617248560183,29.29935312,1918.7,1918.6,0.0001]
[1617248560583,27.46155312,1918.7,1918.6,0.0001]
[1617248561182,35.46155312,1918.7,1918.3,0.38]
[1617248561387,3.91159,1918.4,1918.1,1.322]
[1617248562185,7.82317,1918.3,1918.1,1.322]
[1617248562383,8.36735726,1918.3,1918.1,1.322]
[1617248562785,8.36735726,1918.3,1918.1,1.28]
[1617248562986,17.75045726,1918.3,1918.1,1.28]
[1617248563585,15.91235726,1918.3,1918.1,1.28]
[1617248563985,15.91235726,1918.3,1918.1,1.63]
[1617248566599,14.03615726,1918.3,1918.1,1.63]
[1617248566799,13.49197,1918.3,1918.1,1.63]
[1617248566998,14.85196552,1918.3,1918.1,1.63]
[1617248567622,14.85196552,1918.3,1918.1,1.35]
[1617248568423,13.49197,1918.3,1918.1,1.35]
[1617248568826,13.49197,1918.3,1918.1,0.95]
[1617248569623,11.65317,1918.3,1918.1,1.33]
[1617248570024,12.19737203,1918.3,1918.2,0.38]
[1617248570248,12.19737203,1918.3,1918.1,0.95]
[1617248570449,12.19737203,1918.3,1918.1,1.34]
[1617248570848,12.19737203,1918.3,1918.1,1.62]
[1617248571052,9.92730203,1918.3,1918.2,0.785]
[1617248571251,9.92730203,1918.3,1918.2,1.985]
[1617248571452,9.92730203,1918.3,1918.2,4.77668127]
[1617248571850,9.92730203,1918.3,1918.2,1.985]
[1617248572251,9.92730203,1918.3,1918.2,0.785]
[1617248572455,9.92730203,1918.3,1918.1,0.95]
[1617248572651,9.92730203,1918.3,1918.1,1.63]
[1617248572652,8.08900203,1918.3,1918.1,1.63]
[1617248572873,8.08900203,1918.3,1918.1,1.35]
[1617248573073,8.08900203,1918.3,1918.1,1.63]
[1617248574073,7.5448,1918.3,1918.1,1.63]
[1617248574275,15.36678,1918.3,1918.1,1.63]
[1617248574474,15.36678,1918.3,1918.1,1.35]
[1617248575275,15.36678,1918.3,1918.1,1.63]
[1617248575696,13.50398,1918.3,1918.1,1.63]
[1617248575896,13.50398,1918.3,1918.2,0.39]
[1617248576896,13.50398,1918.3,1918.1,1.62]
[1617248577496,13.50398,1918.3,1918.2,0.4]
[1617248578722,11.65918,1918.3,1918.2,0.4]
[1617248579322,11.65918,1918.3,1918.1,0.95]
[1617248579523,11.65918,1918.3,1918.1,1.23]
[1617248580123,12.20333183,1918.3,1918.1,1.23]
[1617248580523,12.20333183,1918.3,1918.1,1.63]
[1617248580954,12.20333183,1918.3,1918.2,0.39]
[1617248581753,10.36213183,1918.3,1918.2,0.39]
[1617248582858,10.36213183,1918.3,1918.2,0.67]
[1617248583057,10.36213183,1918.3,1918.2,4.66955898]
[1617248583058,2.54015183,1918.3,1918.2,4.66955898]
[1617248583274,0.54415183,1918.3,1918.2,13.68065898]
[1617248583473,0.54415183,1918.3,1918.2,37.02002607]
[1617248583474,5.183e-05,1918.3,1918.2,37.02002607]
[1617248583673,3.535,1919.3,1918.2,37.02002607]
[1617248583674,3.535,1919.3,1918.4,1.431]
[1617248583873,3.535,1919.3,1918.8,0.469]
[1617248584073,3.535,1919.3,1919.0,0.231]
[1617248584672,1.6971,1919.3,1919.0,0.231]
[1617248584875,28.7856,1919.6,1919.0,0.231]
[1617248585075,7.8173,1919.4,1919.1,0.469]
[1617248585906,14.5784,1919.6,1919.1,0.469]
[1617248586110,1.18921184,1919.7,1919.2,0.231]
[1617248586310,7.81682,1919.5,1919.2,0.641]
[1617248587708,5.97832,1919.5,1919.2,0.641]
[1617248588522,5.97832,1919.5,1919.2,0.231]
[1617248590526,5.94832,1919.5,1919.2,0.631]
[1617248590728,4.10612,1919.5,1919.2,0.631]
[1617248591970,4.10612,1919.5,1918.8,1.2]
[1617248592171,4.10612,1919.5,1919.0,1.11]
[1617248592570,4.10612,1919.5,1919.0,0.7]
[1617248592770,4.10612,1919.5,1919.2,0.609]
[1617248593775,2.25822,1919.5,1919.2,0.989]
[1617248594776,2.25822,1919.5,1919.2,0.471]
[1617248595780,2.25822,1919.5,1919.2,0.28]
[1617248595982,2.25822,1919.5,1918.8,1.2]
[1617248595983,6.1674,1919.5,1918.8,1.2]
[1617248596178,3.90918,1919.5,1919.0,0.7]
[1617248596799,2.07238,1919.5,1919.0,1.11]
[1617248597599,2.07238,1919.5,1919.1,0.497]
[1617248597800,12.5081547,1919.6,1919.1,0.877]
[1617248598000,10.42341,1919.6,1919.2,0.203]
[1617248599022,7.81736,1919.4,1919.2,0.483]
[1617248599222,7.81736,1919.4,1919.2,0.28]
[1617248599824,5.97716,1919.4,1919.2,0.28]
[1617248600424,5.97716,1919.4,1919.3,0.4]
[1617248600626,16.95915,1919.8,1919.3,0.4]
[1617248600826,16.95915,1919.8,1919.5,0.4]
[1617248601649,7.81666,1919.6,1919.5,0.4]
[1617248601849,7.81666,1919.6,1919.4,0.28]
[1617248602853,5.97606,1919.6,1919.4,0.28]
[1617248603253,5.97606,1919.6,1919.3,0.4]
[1617248603454,5.97606,1919.6,1919.3,0.715]
[1617248604054,6.36606,1919.6,1918.9,1.2]
[1617248604296,6.36606,1919.6,1919.2,0.434]
[1617248604497,5.97606,1919.6,1919.2,0.434]
[1617248605097,5.97606,1919.6,1919.3,0.266]
[1617248605901,4.12606,1919.6,1919.3,0.656]
[1617248606898,4.12606,1919.6,1919.3,0.266]
[1617248607099,4.12606,1919.6,1919.1,0.4]
[1617248607299,7.8241605,1919.6,1918.8,0.39]
[1617248607499,4.51606,1919.6,1919.0,0.364]
[1617248608299,3.3081005,1919.5,1919.0,0.364]
[1617248608499,7.81838,1919.3,1919.0,0.364]
[1617248608701,7.81838,1919.3,1918.8,0.39]
[1617248608900,5.98008,1919.3,1918.7,0.39]
[1617248609102,5.98008,1919.3,1918.8,0.623]
[1617248609522,5.98008,1919.3,1918.8,0.28]
[1617248610623,5.98008,1919.3,1918.9,0.42]
[1617248610823,5.98008,1919.3,1918.9,0.28]
[1617248611223,7.01244091,1919.3,1918.9,0.28]
[1617248611426,14.63211931,1919.3,1918.7,0.28]
[1617248611629,5.4852569,1919.1,1918.6,0.42]
[1617248611827,5.4852569,1919.1,1918.7,0.28]
[1617248612027,3.31176414,1919.0,1918.5,0.42]
[1617248612248,3.31176414,1919.0,1918.4,0.67]
[1617248613049,10.08716414,1919.0,1918.4,0.67]
[1617248613249,7.82063,1918.7,1918.5,0.42]
[1617248613450,7.82063,1918.7,1918.4,0.39]
[1617248613649,7.82063,1918.7,1918.1,0.95]
[1617248613849,7.82063,1918.7,1918.3,0.41]
[1617248614049,11.13239414,1918.7,1918.3,0.41]
[1617248614253,11.13239414,1918.7,1918.3,0.28]
[1617248614451,7.82063,1918.7,1918.3,0.28]
[1617248614874,18.367,1918.9,1918.4,0.42]
[1617248615074,18.367,1918.9,1918.5,0.67]
[1617248615274,18.367,1918.9,1918.4,0.42]
[1617248615474,18.367,1918.9,1918.5,0.28]
[1617248615675,18.367,1918.9,1918.2,0.4]
[1617248615875,18.367,1918.9,1918.4,0.38]
[1617248615876,26.18675,1918.9,1918.4,0.38]
[1617248616476,26.18675,1918.9,1918.5,0.301]
[1617248616675,26.18675,1918.9,1918.5,0.711]
[1617248617275,26.18675,1918.9,1918.7,0.39]
[1617248617276,7.81975,1918.9,1918.7,0.39]
[1617248617703,7.81975,1918.9,1918.7,0.28]
[1617248617901,5.98285,1918.9,1918.7,0.68]
[1617248618121,4.0790587,1919.1,1918.7,0.68]
[1617248618327,3.535,1919.1,1918.8,0.41]
[1617248618523,3.535,1919.1,1919.0,0.4]
[1617248619724,3.535,1919.1,1918.3,3.33405954]
[1617248619725,3.535,1919.1,1918.7,0.691]
[1617248620147,3.535,1919.1,1918.8,0.41]
[1617248620951,0.021,1919.2,1918.8,0.41]
[1617248621146,0.021,1919.2,1918.8,0.711]
[1617248622348,7.81777,1919.3,1918.8,0.711]
[1617248623154,0.01190373,1919.2,1918.8,0.711]
[1617248623951,4.07881451,1919.5,1919.1,0.39]
[1617248624153,4.07881451,1919.5,1919.2,0.41]
[1617248624351,3.535,1919.6,1919.2,0.41]
[1617248624554,7.81693,1919.5,1919.3,0.399]
[1617248624755,3.535,1919.6,1919.3,0.399]
[1617248625573,11.35162,1919.6,1919.3,1.44823123]
[1617248625775,11.35162,1919.6,1919.3,0.399]
[1617248625975,11.35162,1919.6,1918.9,3.0]
[1617248626175,11.75162,1919.6,1919.2,0.28]
[1617248626374,11.75162,1919.6,1918.9,0.4]
[1617248626375,11.75162,1919.6,1919.0,0.406]
[1617248626776,13.8365144,1919.6,1919.0,0.406]
[1617248626974,3.7629944,1919.6,1919.0,0.406]
[1617248627174,7.6720444,1919.6,1919.0,0.806]
[1617248627899,7.44405,1919.6,1919.0,0.806]
[1617248628302,7.8179,1919.3,1919.1,0.294]
[1617248628703,7.8179,1919.3,1918.9,0.4]
[1617248629103,7.8179,1919.3,1918.9,0.28]
[1617248629908,5.9786,1919.3,1918.9,0.28]
[1617248630105,5.9786,1919.3,1918.9,0.66]
[1617248630305,10.42387,1919.5,1918.9,0.66]
[1617248630531,3.535,1919.6,1919.1,0.4]
[1617248630731,3.535,1919.6,1919.1,0.75]
[1617248631332,3.535,1919.6,1919.1,8.56615]
[1617248631532,3.535,1919.6,1919.1,0.75]
[1617248632537,0.39,1919.5,1918.8,3.21406894]
[1617248632735,0.39,1919.5,1918.8,3.62406894]
[1617248632933,9.04392,1919.6,1918.9,0.406]
[1617248633149,8.64392,1919.6,1918.9,0.796]
[1617248633749,2.0849386,1919.5,1918.9,0.796]
[1617248633956,7.81843,1919.2,1919.0,0.294]
[1617248634750,2.0849386,1919.5,1919.0,0.294]
[1617248634953,3.535,1919.6,1919.0,0.704]
[1617248635351,7.81733,1919.5,1919.0,0.704]
[1617248636001,5.98043,1919.5,1919.0,0.704]
[1617248639007,4.14143,1919.5,1919.0,0.704]
[1617248640206,4.14143,1919.5,1919.0,0.69]
[1617248640408,4.14143,1919.5,1919.0,0.28]
[1617248640604,4.04143,1919.5,1919.0,0.28]
[1617248641030,6.1261571,1919.5,1919.0,0.28]
[1617248641229,2.0847271,1919.5,1919.0,0.28]
[1617248642029,0.2477271,1919.5,1919.1,0.39]
[1617248642629,8.0649771,1919.5,1919.1,0.39]
[1617248642829,0.2477271,1919.5,1919.1,0.39]
[1617248643032,15.44416,1919.6,1919.1,0.39]
[1617248643228,7.44416,1919.6,1919.1,0.705]
[1617248644058,7.81741,1919.4,1919.1,0.705]
[1617248644459,7.44416,1919.6,1919.1,0.705]
[1617248645061,5.60386,1919.6,1919.1,0.705]
[1617248646280,7.81695,1919.5,1919.1,0.705]
[1617248648082,5.97795,1919.5,1919.1,0.705]
[1617248650915,4.13815,1919.5,1919.1,0.315]
[1617248651751,4.13815,1919.5,1919.1,0.215]
[1617248653953,2.30035,1919.5,1919.1,0.215]
[1617248654153,2.30035,1919.5,1919.2,0.4]
[1617248655555,2.30035,1919.5,1919.1,0.215]
[1617248656983,0.45805,1919.5,1919.1,0.625]
[1617248657881,0.45805,1919.5,1919.2,0.39]
[1617248658083,7.61301421,1919.6,1919.3,0.41]
[1617248659081,7.61301421,1919.6,1919.2,7.81624]
[1617248659281,7.61301421,1919.6,1919.2,8.20624]
[1617248660109,4.07801421,1919.6,1919.3,0.69]
[1617248660308,4.07801421,1919.6,1919.3,0.41]
[1617248661108,4.02801421,1919.6,1919.4,0.41]
[1617248662333,4.02801421,1919.6,1919.5,13.21866443]
[1617248662934,0.68900315,1920.0,1919.5,13.21866443]
[1617248663160,1.20884391,1920.4,1919.9,6.5737]
[1617248663161,13.52488495,1920.2,1919.9,6.5737]
[1617248663356,13.52488495,1920.2,1920.0,0.4]
[1617248664156,13.52488495,1920.2,1919.9,6.4403]
[1617248664767,13.52488495,1920.2,1920.0,10.94614489]
[1617248664966,13.52488495,1920.2,1920.0,11.34614489]
[1617248666166,11.68458495,1920.2,1920.1,0.41]
[1617248668185,11.68458495,1920.2,1920.1,8.22196]
[1617248668985,9.84648495,1920.2,1920.1,8.22196]
[1617248672011,8.00728495,1920.2,1920.1,8.22196]
[1617248673444,0.91548495,1920.2,1920.1,22.31326576]
[1617248673746,0.91548495,1920.2,1920.1,24.56196]
[1617248674145,1.0,1920.4,1920.2,26.05]
[1617248674146,0.48798495,1920.4,1920.2,26.05]
[1617248674349,0.48798495,1920.4,1920.3,28.29868798]
[1617248674545,0.48798495,1920.4,1920.3,40.26808798]
[1617248674946,0.48798495,1920.4,1920.3,41.84279369]
[1617248675163,1.0,1920.9,1920.3,41.96576289]
[1617248675364,1.0,1920.9,1920.7,9.5429]
[1617248675764,1.0,1920.9,1920.8,0.4]
[1617248676968,1.0,1920.9,1920.7,16.96225]
[1617248677167,1.0,1920.9,1920.7,20.30225]
[1617248678196,2.6956,1921.2,1920.8,0.38]
[1617248678396,8.80976,1921.4,1920.8,3.823]
[1617248678597,8.80976,1921.4,1921.1,0.4]
[1617248678802,8.80976,1921.4,1921.1,8.783]
[1617248678803,1.0,1921.4,1921.1,8.783]
[1617248678998,1.0,1921.4,1921.1,8.383]
[1617248680414,1.0,1921.4,1921.1,8.783]
[1617248680815,1.0,1921.4,1921.2,0.4]
[1617248681216,3.92388639,1921.6,1921.3,0.41]
[1617248681815,3.92388639,1921.6,1921.3,3.6534087]
[1617248682417,3.535,1921.6,1921.3,3.6534087]
[1617248682618,3.535,1921.6,1921.4,3.2434087]
[1617248682819,3.535,1921.6,1921.5,8.78]
[1617248683041,3.535,1921.6,1921.5,16.7776]
[1617248683240,3.535,1921.6,1921.5,19.7776]
[1617248684240,1.0,1921.9,1921.5,19.7776]
[1617248684440,1.0,1921.9,1921.6,0.38]
[1617248685040,1.0,1921.9,1921.7,0.17501268]
[1617248685239,1.0,1921.9,1921.8,0.4]
[1617248685439,1.0,1921.9,1921.6,3.65560216]
[1617248685667,1.39,1921.9,1921.6,0.28]
[1617248686666,1.0,1921.9,1921.6,0.28]
[1617248687265,1.1396,1922.0,1921.6,0.66]
[1617248687469,1.1396,1922.0,1921.6,7.5047]
[1617248690289,0.098,1922.1,1921.6,7.5047]
[1617248690489,0.508,1922.1,1921.6,7.5047]
[1617248691117,12.283,1922.4,1921.6,7.5047]
[1617248691316,7.80599,1922.1,1921.6,7.5047]
[1617248691718,8.19599,1922.1,1921.6,7.5047]
[1617248693319,0.4,1921.8,1921.4,0.09406894]
[1617248693541,4.30327,1922.0,1921.3,0.28]
[1617248693542,0.39,1921.7,1921.3,0.28]
[1617248693743,0.38,1921.6,1921.3,0.28]
[1617248694149,0.38,1921.6,1921.1,0.41606894]
[1617248694346,0.38,1921.6,1921.1,0.322]
[1617248694748,2.0822453,1921.5,1921.1,0.322]
[1617248695144,10.41155,1921.2,1921.1,0.322]
[1617248695544,10.41155,1921.2,1920.9,4.0]
[1617248695743,10.81155,1921.2,1920.9,4.28]
[1617248696484,8.57015,1921.2,1920.9,4.28]
[1617248698686,0.41,1921.1,1920.9,4.28]
[1617248698896,8.98015,1921.2,1920.9,4.0]
[1617248698897,9.68,1921.0,1920.9,4.0]
[1617248699094,12.80120214,1921.0,1920.7,0.18868223]
[1617248699294,10.96260214,1921.0,1920.2,14.4187]
[1617248699493,3.90584,1920.7,1920.1,1.28]
[1617248699694,14.36734,1920.7,1920.1,1.28]
[1617248699896,7.81195,1920.4,1920.1,1.28]
[1617248701926,11.0212027,1920.4,1920.1,1.0]
[1617248702124,0.41,1920.3,1920.1,1.0]
[1617248702326,29.1222527,1920.2,1920.1,1.0]
[1617248702525,36.1904527,1920.2,1920.1,1.0]
[1617248703129,14.88216,1920.2,1920.1,1.0]
[1617248703525,14.88216,1920.2,1920.1,1.39]
[1617248703725,7.81396,1920.2,1920.1,1.39]
[1617248703924,7.81396,1920.2,1920.1,1.0]
[1617248705350,5.97236,1920.2,1920.1,1.0]
[1617248708379,4.12816,1920.2,1920.1,1.0]
[1617248710027,10.02816,1920.2,1920.1,1.0]
[1617248711430,8.18756,1920.2,1920.1,1.0]
[1617248711630,2.28756,1920.2,1920.1,1.0]
[1617248714433,0.44756,1920.2,1920.1,1.0]
[1617248716851,24.87846932,1920.2,1920.1,1.0]
[1617248717483,30.85382932,1920.2,1920.1,1.0]
[1617248717686,37.06382932,1920.2,1920.1,1.0]
[1617248719087,36.65382932,1920.2,1920.1,1.0]
[1617248719285,31.64382932,1920.2,1920.1,1.0]
[1617248719686,28.61396,1920.2,1920.1,1.0]
[1617248720501,26.76816,1920.2,1920.1,1.0]
[1617248720704,7.81396,1920.2,1920.1,1.0]
[1617248723345,5.97266,1920.2,1920.1,1.0]
[1617248724549,9.18461376,1920.2,1920.1,1.0]
[1617248724747,23.33461376,1920.2,1920.1,1.0]
[1617248724949,23.73461376,1920.2,1920.1,1.0]
[1617248725372,24.27829721,1920.2,1920.1,1.0]
[1617248725572,29.28829721,1920.2,1920.1,1.0]
[1617248726172,38.05339721,1920.2,1920.1,1.0]
[1617248726373,38.05339721,1920.2,1919.6,1.0]
[1617248726374,36.30679721,1920.2,1919.6,1.0]
[1617248726576,5.01,1920.0,1919.6,1.0]
[1617248726775,32.17873721,1920.2,1919.6,1.0]
[1617248726975,11.72485,1919.8,1919.6,1.0]
[1617248727576,13.8091752,1919.8,1919.6,1.0]
[1617248727778,13.8091752,1919.8,1919.6,1.39]
[1617248728178,11.72485,1919.8,1919.6,1.39]
[1617248728580,11.72485,1919.8,1919.6,1.0]
[1617248728581,16.53316954,1919.8,1919.6,1.0]
[1617248728782,38.54373066,1919.7,1919.6,1.0]
[1617248728978,24.14,1919.6,1919.1,1.0]
[1617248729181,3.20229302,1919.5,1919.1,1.0]
[1617248729381,7.81872,1919.3,1919.1,1.0]
[1617248729579,5.97342,1919.3,1919.1,1.0]
[1617248729778,14.39079846,1919.3,1919.1,1.0]
[1617248729977,8.41737846,1919.3,1919.1,1.0]
[1617248731196,17.56921,1919.2,1919.1,1.0]
[1617248731397,24.71241,1919.2,1919.1,1.0]
[1617248732400,22.87271,1919.2,1919.1,1.0]
[1617248733829,23.28271,1919.2,1919.1,1.0]
[1617248734232,29.49271,1919.2,1919.1,1.0]
[1617248735333,29.49271,1919.2,1918.6,1.0]
[1617248735334,1.2,1919.0,1918.6,1.0]
[1617248735553,24.1145,1918.7,1918.6,1.0]
[1617248738228,32.1145,1918.7,1918.6,1.0]
[1617248738426,30.2773,1918.7,1918.6,1.0]
[1617248739027,24.1145,1918.7,1918.6,1.0]
[1617248740229,32.1145,1918.7,1918.6,1.0]
[1617248740428,35.01676984,1918.7,1918.6,1.0]
[1617248740629,33.3145,1918.7,1918.6,1.0]
[1617248741230,33.3145,1918.7,1918.1,0.95]
[1617248741231,20.3,1918.6,1918.1,0.95]
[1617248741431,20.3,1918.6,1918.1,1.23]
[1617248741432,5.98244,1918.4,1918.1,1.23]
[1617248742231,8.068529,1918.4,1918.1,0.95]
[1617248742433,2.729789,1918.4,1918.1,0.95]
[1617248742830,3.929789,1918.4,1918.1,0.95]
[1617248744231,7.8221,1918.3,1918.1,0.95]
[1617248744631,5.9762,1918.3,1918.1,0.95]
[1617248747460,14.2384,1918.3,1918.1,0.95]
[1617248747663,12.3328,1918.3,1918.1,0.95]
[1617248748060,10.2182,1918.3,1918.1,0.95]
[1617248748673,10.21099627,1918.3,1918.1,0.95]
[1617248751078,10.20239627,1918.3,1918.1,0.95]
[1617248751503,12.41774859,1918.3,1918.1,0.95]
[1617248751707,26.26,1918.2,1918.1,0.95]
[1617248751904,36.69242,1918.2,1918.1,0.95]
[1617248752305,37.89242,1918.2,1918.1,0.95]
[1617248752506,37.89242,1918.2,1917.6,1.0]
[1617248752507,0.098,1918.0,1917.6,1.0]
[1617248752706,3.28880348,1918.0,1917.6,1.0]
[1617248752908,8.29880348,1918.0,1917.6,1.0]
[1617248753106,6.71226984,1917.9,1917.6,1.0]
[1617248753320,25.39,1917.7,1917.6,1.0]
[1617248753520,34.0264,1917.7,1917.6,1.0]
[1617248753924,32.8264,1917.7,1917.6,1.0]
[1617248754132,30.99,1917.7,1917.6,1.0]
[1617248756326,32.58,1917.7,1917.6,1.0]
[1617248756980,33.66889312,1917.7,1917.6,1.0]
[1617248757179,31.98154012,1917.7,1917.6,1.0]
[1617248757579,31.98154012,1917.7,1917.6,0.95]
[1617248758379,30.78154012,1917.7,1917.6,0.95]
[1617248758983,29.692647,1917.7,1917.6,0.95]
[1617248760181,27.847747,1917.7,1917.6,0.95]
[1617248761582,61.14045439,1917.7,1917.6,0.95]
[1617248761801,61.14045439,1917.7,1917.1,1.0]
[1617248761802,24.648,1917.6,1917.1,1.0]
[1617248762004,18.60904346,1917.5,1917.1,1.0]
[1617248762206,1.2,1917.3,1917.1,1.0]
[1617248762403,1.2,1917.3,1916.6,1.0]
[1617248762404,65.59164346,1917.2,1916.6,1.0]
[1617248762603,6.6442,1917.1,1916.6,1.0]
[1617248762803,12.83977,1916.9,1916.6,1.0]
[1617248763004,12.83977,1916.9,1916.6,0.95]
[1617248763204,3.1689,1916.8,1916.6,0.95]
[1617248764207,0.9731,1916.9,1916.6,0.95]
[1617248764208,7.82977,1916.7,1916.6,0.95]
[1617248766236,15.3803994,1916.7,1916.6,1.36]
[1617248766436,15.3803994,1916.7,1916.6,0.9]
[1617248766635,5.98977,1916.7,1916.6,0.9]
[1617248767050,5.98977,1916.7,1916.6,0.85]
[1617248768453,5.98977,1916.7,1916.6,0.8]
[1617248769053,13.03887,1916.7,1916.6,0.8]
[1617248769253,11.18047,1916.7,1916.6,0.8]
[1617248772102,14.3737237,1916.7,1916.6,0.8]
[1617248772301,14.24959829,1916.7,1916.6,0.8]
[1617248772702,12.5348237,1916.7,1916.6,0.8]
[1617248773101,9.34157,1916.7,1916.6,0.8]
[1617248773905,12.53724038,1916.7,1916.6,0.8]
[1617248774703,17.54724038,1916.7,1916.6,0.8]
[1617248774924,19.83654213,1916.7,1916.6,0.8]
[1617248775325,17.99954213,1916.7,1916.6,0.8]
[1617248775725,16.79954213,1916.7,1916.6,0.8]
[1617248776127,13.6,1916.6,1916.2,0.448]
[1617248776326,7.83018,1916.4,1916.2,0.448]
[1617248777326,7.83018,1916.4,1916.2,0.2981]
[1617248777584,7.83018,1916.4,1916.1,1.0]
[1617248777585,3.19008572,1916.3,1916.1,1.0]
[1617248777783,12.45048572,1916.3,1916.1,1.0]
[1617248778183,12.37072739,1916.3,1916.1,1.0]
[1617248778382,11.02234167,1916.3,1916.1,1.0]
[1617248778585,43.65294614,1916.3,1916.1,1.0]
[1617248778784,43.65294614,1916.3,1915.6,1.0]
[1617248778785,56.03858,1916.2,1915.6,1.0]
[1617248778985,6.0061231,1915.9,1915.6,1.0]
[1617248779187,1.0204,1916.2,1915.6,1.4]
[1617248779384,1.0204,1916.2,1915.7,0.38]
[1617248779583,1.0204,1916.2,1915.8,0.39]
[1617248779784,8.14,1916.3,1916.0,0.4]
[1617248779785,15.83025,1916.3,1916.0,0.4]
[1617248779987,2.0879027,1916.2,1916.1,3.58659828]
[1617248780183,13.05665,1916.4,1916.1,3.86659828]
[1617248780184,3.91482,1916.3,1916.1,3.86659828]
[1617248780384,13.05665,1916.4,1916.2,0.39]
[1617248780583,13.05665,1916.4,1916.3,20.88659828]
[1617248780783,13.05665,1916.4,1916.3,24.62659828]
[1617248780982,13.05665,1916.4,1916.3,6.92659828]
[1617248781183,13.05665,1916.4,1916.3,3.18659828]
[1617248781386,11.20055,1916.4,1916.3,3.18659828]
[1617248781787,11.20055,1916.4,1916.3,3.58659828]
[1617248782184,11.20055,1916.4,1916.3,0.4]
[1617248782384,11.20055,1916.4,1916.3,3.58921974]
[1617248782587,11.20055,1916.4,1916.3,0.4]
[1617248783027,11.20055,1916.4,1915.9,3.56921974]
[1617248783242,11.20055,1916.4,1915.9,0.38]
[1617248783439,11.20055,1916.4,1915.9,3.87721974]
[1617248783640,7.82961,1916.2,1915.9,3.87721974]
[1617248783838,7.82961,1916.2,1916.0,0.39]
[1617248784239,5.99091,1916.2,1916.0,0.39]
[1617248784445,5.99091,1916.2,1915.8,1.2]
[1617248784641,5.99091,1916.2,1915.8,1.61]
[1617248785240,7.309142,1916.1,1915.8,1.61]
[1617248785440,7.309142,1916.1,1915.8,1.2]
[1617248785640,3.91603,1915.9,1915.8,1.2]
[1617248785839,3.91603,1915.9,1915.6,1.4]
[1617248787048,11.74809,1915.8,1915.6,4.59165454]
[1617248787241,11.74809,1915.8,1915.6,1.4]
[1617248787441,9.90789,1915.8,1915.7,0.4]
[1617248789657,7.83206,1915.8,1915.7,4.79409218]
[1617248790053,10.44274,1915.9,1915.7,12.84409218]
[1617248790254,9.36125,1916.4,1915.8,0.4]
[1617248790455,0.27227534,1916.6,1916.2,0.4]
[1617248790683,4.05398,1916.6,1916.2,0.4]
[1617248791284,10.4376,1916.4,1916.2,0.4]
[1617248791484,10.4376,1916.4,1916.1,0.28]
[1617248791884,10.4376,1916.4,1915.9,0.39]
[1617248792083,10.5426,1916.4,1915.9,0.67]
[1617248792288,9.46889754,1916.4,1916.0,0.41]
[1617248792485,9.46889754,1916.4,1916.1,0.38]